fUSD/lending_fUSD_20240823
["ID","MTS","AMOUNT","RATE_DAILY","PERIOD"]
[335674997,1724418632492,-308.18,0.000108,2]
[335674998,1724418632502,-6860.57936563,0.000108,2]
[335674999,1724418632514,-826.32428039,0.000108,2]
[335675000,1724418632525,-1500.0,0.000108,2]
[335675001,1724418632536,-1476.78718249,0.000108,2]
[335675002,1724418632555,-1659.97626581,0.000108,2]
[335675003,1724418632564,-270.58164358,0.00010852,2]
[335675004,1724418632573,-2219.72755,0.0001089,2]
[335675005,1724418632583,-2174.8637,0.00010897,2]
[335675006,1724418632592,-9528.98073351,0.00010899,2]
[335675007,1724418638216,-996.12239529,0.00010899,2]
[335675008,1724418638329,-1165.26374629,0.00010899,2]
[335675009,1724418638438,-947.03903573,0.00010899,2]
[335675010,1724418638450,-999.74914105,0.00010899,2]
[335675011,1724418638461,-571.14240892,0.00010899,2]
[335675016,1724418640325,-9405.77135956,0.00010899,2]
[335675017,1724418640334,-2324.836531,0.000109,2]
[335675018,1724418640343,-558.5476551,0.000109,2]
[335675019,1724418640490,-834.30484756,0.000109,2]
[335675020,1724418640502,-10745.59098843,0.000109,2]
[335675022,1724418642408,478.67,0.0001,2]
[335675028,1724418643409,-313.42434846,0.000109,2]
[335675046,1724418699510,2000.0,0.00027,120]
[335675050,1724418710818,500.0,0.0001,2]
[335675051,1724418711583,500.0,0.0001,2]
[335675052,1724418712335,185.56,0.0001,2]
[335675053,1724418752796,210.47,8.346e-05,2]
[335675054,1724418797155,1000.0,0.00027,120]
[335675055,1724418797636,1000.0,0.00027,120]
[335675061,1724418832717,500.0,0.00027,120]
[335675066,1724418843944,285.06,0.0001,2]
[335675067,1724418857332,200.0,0.00027,120]
[335675069,1724418885818,309.33153452,0.00025,90]
[335675071,1724418904364,500.0,0.0001,2]
[335675073,1724418972309,3000.0,0.00027,120]
[335675074,1724418972945,3000.0,0.00027,120]
[335675075,1724419029697,2149.0,0.0001,2]
[335675078,1724419158466,800.0,9.959e-05,2]
[335675079,1724419214230,3000.0,0.00027,120]
[335675080,1724419214550,3000.0,0.00027,120]
[335675081,1724419258358,199.94,8.219e-05,2]
[335675083,1724419361011,230.34,0.0001,2]
[335675084,1724419400845,1000.0,0.00027,120]
[335675085,1724419401309,1000.0,0.00027,120]
[335675087,1724419440860,500.0,0.00027,120]
[335675088,1724419446220,700.0,0.00027,120]
[335675089,1724419457549,500.0,0.00025,60]
[335675090,1724419459946,200.0,0.00027,120]
[335675091,1724419488885,161.05,9.95e-05,2]
[335675093,1724419520735,3000.0,0.00027,120]
[335675094,1724419521126,3000.0,0.00027,120]
[335675097,1724419577940,1519.77702755,0.00010009,2]
[335675100,1724419629329,150.0,9.888e-05,2]
[335675101,1724419638405,5419.44,0.00027,120]
[335675106,1724419661146,360.0,9.873e-05,2]
[335675131,1724419758554,189.94,8.219e-05,2]
[335675148,1724419813102,500.0,0.00027,120]
[335675153,1724419831406,-963.30140062,0.00010097,2]
[335675154,1724419831417,-238.95,0.00010113,2]
[335675155,1724419831428,-200.0,0.000103,3]
[335675156,1724419831437,-500.0,0.000104,3]
[335675157,1724419831446,-171.66,0.00010417,2]
[335675158,1724419831458,-189.94,0.0001047,2]
[335675159,1724419831469,-4872.98599251,0.0001047,2]
[335675160,1724419831481,-1425.76150624,0.0001047,2]
[335675161,1724419831500,-1082.8218589,0.0001047,2]
[335675162,1724419831531,-34838.74055268,0.0001047,2]
[335675163,1724419831543,-253.32919331,0.00010471,2]
[335675164,1724419831553,-700.0,0.000105,3]
[335675165,1724419831565,-1000.0,0.000106,3]
[335675166,1724419831579,-9104.06,0.000106,2]
[335675167,1724419831588,-2380.42,0.000106,2]
[335675168,1724419831597,-574.18,0.000106,2]
[335675169,1724419831606,-428.22,0.000106,2]
[335675170,1724419831615,-155.0,0.00010699,2]
[335675171,1724419831625,-1200.0,0.000107,3]
[335675172,1724419831634,-1849.77296,0.0001079,2]
[335675173,1724419831644,-200.0,0.000108,3]
[335675174,1724419831653,-491.86512668,0.000108,2]
[335675175,1724419831860,-3405.87089751,0.00010861,2]
[335675176,1724419831870,-698.37,0.00010862,2]
[335675177,1724419831881,-3405.87089751,0.00010888,2]
[335675178,1724419831890,-458.66,0.0001089,2]
[335675179,1724419831900,-499.99,0.0001089,2]
[335675180,1724419831910,-8110.6168,0.00010892,2]
[335675181,1724419831919,-259.17,0.00010896,2]
[335675182,1724419831928,-298.46,0.00010896,2]
[335675183,1724419831938,-2087.3055,0.00010896,2]
[335675184,1724419831947,-1000.0,0.00010897,2]
[335675185,1724419831956,-1389.6944,0.00010897,2]
[335675186,1724419831965,-14079.9361,0.00010897,2]
[335675187,1724419831974,-1696.2184,0.00010897,2]
[335675188,1724419831984,-6498.0575,0.00010897,2]
[335675189,1724419831993,-560.2683,0.00010897,2]
[335675190,1724419832003,-5662.9713,0.00010897,2]
[335675191,1724419832012,-1000.0,0.00010898,2]
[335675192,1724419832026,-7500.0,0.00010899,2]
[335675193,1724419832035,-21252.66193827,0.00010899,2]
[335675194,1724419832044,-375.3169646,0.00010899,2]
[335675195,1724419832053,-328.92208693,0.000109,2]
[335675196,1724419832063,-169.18418739,0.000109,2]
[335675197,1724419832072,-426.87,0.000109,2]
[335675198,1724419832082,-421.47,0.000109,2]
[335675199,1724419832093,-200.0,0.000109,3]
[335675200,1724419832102,-1841.74459009,0.000109,2]
[335675201,1724419832112,-500.0,0.00010912,2]
[335675202,1724419832122,-177.24,0.00010959,2]
[335675203,1724419832132,-250.0,0.00010959,2]
[335675204,1724419832142,-150.0,0.00010959,2]
[335675205,1724419832151,-508.08,0.00010959,2]
[335675206,1724419832160,-49127.0357199,0.00010992,2]
[335675207,1724419832169,-562.92,0.00010996,2]
[335675208,1724419832178,-1590.75,0.00010996,2]
[335675209,1724419832188,-500.0,0.00010996,2]
[335675210,1724419832197,-500.0,0.00010996,2]
[335675211,1724419832206,-196.49980654,0.00010996,2]
[335675212,1724419832217,-279.06947401,0.00010996,2]
[335675213,1724419832227,-500.0,0.00010997,2]
[335675214,1724419832235,-20000.0,0.00010997,2]
[335675215,1724419832244,-500.0,0.00010997,2]
[335675216,1724419832254,-500.0,0.00010997,2]
[335675217,1724419832263,-344.05153601,0.00010997,2]
[335675218,1724419832272,-525.45975887,0.00010997,2]
[335675219,1724419832281,-500.0,0.00010997,2]
[335675220,1724419832290,-500.0,0.00010997,2]
[335675222,1724419832299,-500.0,0.00010997,2]
[335675224,1724419832308,-500.0,0.00010997,2]
[335675225,1724419832318,-500.0,0.00010997,2]
[335675227,1724419832327,-500.0,0.00010997,2]
[335675229,1724419832336,-7334.031407,0.00010997,2]
[335675231,1724419832346,-500.0,0.00010997,2]
[335675233,1724419832355,-500.0,0.00010997,2]
[335675235,1724419832364,-500.0,0.00010997,2]
[335675237,1724419832374,-500.0,0.00010997,2]
[335675239,1724419832383,-500.0,0.00010997,2]
[335675241,1724419832392,-500.0,0.00010997,2]
[335675243,1724419832401,-635.5,0.00010997,2]
[335675245,1724419832410,-500.0,0.00010997,2]
[335675247,1724419832419,-500.0,0.00010997,2]
[335675249,1724419832429,-500.0,0.00010997,2]
[335675251,1724419832438,-500.0,0.00010997,2]
[335675253,1724419832447,-500.0,0.00010997,2]
[335675255,1724419832456,-500.0,0.00010997,2]
[335675257,1724419832465,-500.0,0.00010997,2]
[335675258,1724419832475,-500.0,0.00010997,2]
[335675260,1724419832485,-3328.7451397,0.00010997,2]
[335675261,1724419832494,-539.25,0.00010997,2]
[335675262,1724419832503,-500.0,0.00010997,2]
[335675263,1724419832512,-526.99586319,0.00010997,2]
[335675264,1724419832521,-500.0,0.00010997,2]
[335675265,1724419832531,-1220.97,0.00010997,2]
[335675267,1724419832540,-500.0,0.00010997,2]
[335675269,1724419832550,-500.0,0.00010997,2]
[335675271,1724419832559,-988.75,0.00010997,2]
[335675273,1724419832569,-500.0,0.00010997,2]
[335675275,1724419832579,-625.98,0.00010997,2]
[335675277,1724419832588,-330.55459262,0.00010997,2]
[335675278,1724419832597,-240.73107723,0.00010997,2]
[335675279,1724419832607,-500.0,0.00010997,2]
[335675280,1724419832617,-500.0,0.00010997,2]
[335675281,1724419832626,-500.0,0.00010997,2]
[335675282,1724419832636,-346.64206657,0.00010998,2]
[335675283,1724419832647,-500.0,0.00010998,2]
[335675284,1724419832656,-628.53156269,0.00010998,2]
[335675285,1724419832666,-500.0,0.00010998,2]
[335675286,1724419832675,-500.0,0.00010998,2]
[335675287,1724419832684,-524.59129683,0.00010998,2]
[335675288,1724419832694,-500.0,0.00010998,2]
[335675289,1724419832704,-500.0,0.00010998,2]
[335675290,1724419832713,-614.81842237,0.00010998,2]
[335675291,1724419832724,-500.0,0.00010998,2]
[335675292,1724419832734,-500.0,0.00010998,2]
[335675293,1724419832744,-500.0,0.00010998,2]
[335675294,1724419832753,-500.0,0.00010998,2]
[335675295,1724419832763,-500.0,0.00010998,2]
[335675296,1724419832772,-500.0,0.00010998,2]
[335675297,1724419832782,-500.0,0.00010998,2]
[335675298,1724419832791,-500.0,0.00010998,2]
[335675299,1724419832800,-217.6,0.00010998,2]
[335675300,1724419832809,-192.67,0.00010998,2]
[335675301,1724419832819,-500.0,0.00010998,2]
[335675302,1724419832828,-244.94971718,0.00010998,2]
[335675303,1724419832838,-526.58393809,0.00010998,2]
[335675304,1724419832848,-500.0,0.00010998,2]
[335675305,1724419832858,-500.0,0.00010998,2]
[335675306,1724419832867,-261.52628572,0.00010998,2]
[335675307,1724419832877,-500.0,0.00010998,2]
[335675309,1724419832886,-151.0,0.00010998,2]
[335675311,1724419832896,-500.0,0.00010998,2]
[335675313,1724419832906,-500.0,0.00010998,2]
[335675314,1724419832915,-409.37480196,0.00010998,2]
[335675315,1724419832925,-500.0,0.00010998,2]
[335675316,1724419832934,-500.0,0.00010998,2]
[335675317,1724419832943,-500.0,0.00010998,2]
[335675318,1724419832953,-500.0,0.00010998,2]
[335675319,1724419832963,-447.87,0.00010998,2]
[335675320,1724419832972,-500.0,0.00010998,2]
[335675321,1724419832982,-500.0,0.00010998,2]
[335675322,1724419832992,-500.0,0.00010998,2]
[335675323,1724419833001,-500.0,0.00010998,2]
[335675324,1724419833013,-500.0,0.00010998,2]
[335675325,1724419833024,-500.0,0.00010998,2]
[335675326,1724419833034,-500.0,0.00010998,2]
[335675327,1724419833043,-500.0,0.00010998,2]
[335675328,1724419833054,-500.0,0.00010998,2]
[335675329,1724419833065,-500.0,0.00010998,2]
[335675330,1724419833075,-500.0,0.00010998,2]
[335675331,1724419833086,-500.0,0.00010998,2]
[335675332,1724419833096,-500.0,0.00010998,2]
[335675333,1724419833106,-500.0,0.00010998,2]
[335675334,1724419833116,-500.0,0.00010998,2]
[335675335,1724419833126,-500.0,0.00010998,2]
[335675336,1724419833135,-500.0,0.00010998,2]
[335675337,1724419833146,-391.68189085,0.00010998,2]
[335675338,1724419833156,-500.0,0.00010998,2]
[335675339,1724419833166,-190.26,0.00010998,2]
[335675340,1724419833176,-500.0,0.00010998,2]
[335675341,1724419833185,-500.0,0.00010998,2]
[335675342,1724419833194,-500.0,0.00010998,2]
[335675343,1724419833204,-500.0,0.00010998,2]
[335675344,1724419833214,-500.0,0.00010998,2]
[335675345,1724419833224,-500.0,0.00010998,2]
[335675346,1724419833234,-500.0,0.00010998,2]
[335675347,1724419833243,-342.04669783,0.00010998,2]
[335675348,1724419833253,-539.25,0.00010998,2]
[335675349,1724419833263,-500.0,0.00010998,2]
[335675350,1724419833272,-500.0,0.00010998,2]
[335675351,1724419833282,-500.0,0.00010998,2]
[335675352,1724419833291,-500.0,0.00010998,2]
[335675353,1724419833301,-500.0,0.00010998,2]
[335675354,1724419833311,-500.0,0.00010998,2]
[335675355,1724419833325,-1220.97,0.00010998,2]
[335675356,1724419833335,-164.596801,0.00010998,2]
[335675357,1724419833345,-500.0,0.00010998,2]
[335675358,1724419833355,-164.596801,0.00010998,2]
[335675359,1724419833366,-151.0,0.00010998,2]
[335675360,1724419833376,-500.0,0.00010998,2]
[335675361,1724419833386,-1123.46,0.00010998,2]
[335675362,1724419833396,-151.0,0.00010998,2]
[335675363,1724419833407,-182.99981127,0.00010998,2]
[335675364,1724419833417,-988.75,0.00010998,2]
[335675365,1724419833427,-198.78,0.00010998,2]
[335675366,1724419833437,-500.0,0.00010998,2]
[335675367,1724419833446,-999.0,0.00010998,2]
[335675368,1724419833456,-500.0,0.00010998,2]
[335675369,1724419833465,-500.0,0.00010998,2]
[335675370,1724419833475,-500.0,0.00010998,2]
[335675371,1724419833485,-437.02,0.00010998,2]
[335675372,1724419833495,-500.0,0.00010998,2]
[335675373,1724419833505,-500.0,0.00010998,2]
[335675374,1724419833515,-151.0,0.00010998,2]
[335675375,1724419833525,-625.98,0.00010998,2]
[335675376,1724419833535,-500.0,0.00010998,2]
[335675377,1724419833545,-500.0,0.00010998,2]
[335675378,1724419833554,-500.0,0.00010998,2]
[335675379,1724419833569,-500.0,0.00010998,2]
[335675380,1724419833580,-500.0,0.00010998,2]
[335675381,1724419833590,-593.75,0.00010998,2]
[335675382,1724419833600,-604.81200696,0.00010998,2]
[335675383,1724419833610,-188.21758743,0.00010998,2]
[335675384,1724419833629,-311.78241257,0.00010998,2]
[335675385,1724419833639,-500.0,0.00010998,2]
[335675386,1724419833648,-151.0,0.00010998,2]
[335675387,1724419833657,-500.0,0.00010998,2]
[335675388,1724419833667,-500.0,0.00010998,2]
[335675389,1724419833676,-121.99258743,0.00010999,2]
[335675390,1724419833688,-29.00741257,0.00010999,2]
[335675391,1724419833698,-500.0,0.00010999,2]
[335675392,1724419833708,-500.0,0.00010999,2]
[335675393,1724419833718,-422.23348901,0.00010999,2]
[335675394,1724419833730,-77.76651099,0.00010999,2]
[335675395,1724419833740,-500.0,0.00010999,2]
[335675396,1724419833750,-271.60308147,0.00010999,2]
[335675397,1724419833766,-228.39691853,0.00010999,2]
[335675398,1724419833775,-500.0,0.00010999,2]
[335675399,1724419833784,-404.76438084,0.00010999,2]
[335675404,1724419837449,-95.23561916,0.00010999,2]
[335675405,1724419837462,-160.30183789,0.00010999,2]
[335675406,1724419837510,-339.69816211,0.00010999,2]
[335675407,1724419837521,-151.0,0.00010999,2]
[335675408,1724419837531,-253.488177,0.00010999,2]
[335675409,1724419837542,-1590.75,0.00010999,2]
[335675410,1724419837552,-330.29414088,0.00010999,2]
[335675411,1724419837564,-1260.45585912,0.00010999,2]
[335675412,1724419837578,-239.54414088,0.00010999,2]
[335675413,1724419837627,-1351.20585912,0.00010999,2]
[335675414,1724419837637,-1398.24091335,0.00010999,2]
[335675415,1724419837689,-500.0,0.00010998,2]
[335675416,1724419837700,-183.52597038,0.00010999,2]
[335675559,1724419839448,-8.98311627,0.00010999,2]
[335675562,1724419839459,-1590.75,0.00010999,2]
[335675564,1724419839468,-265.49909153,0.00010999,2]
[335675590,1724419839735,-1325.25090847,0.00010999,2]
[335675592,1724419839745,-461.20836739,0.00010999,2]
[335675595,1724419839758,-1129.54163261,0.00010999,2]
[335675597,1724419839768,-1384.88129353,0.00010999,2]
[335675667,1724419842511,-173.32103328,0.00010998,2]
[335675668,1724419842522,-205.86870647,0.00010999,2]
[335675669,1724419842532,-407.81026025,0.00010999,2]
[335675684,1724419845599,-1182.93973975,0.00010999,2]
[335675685,1724419845609,-23.15843852,0.00010999,2]
[335675686,1724419845620,-1567.59156148,0.00010999,2]
[335675687,1724419845630,-1590.75,0.00010999,2]
[335675688,1724419845639,-1386.97085855,0.00010999,2]
[335675689,1724419845651,-203.77914145,0.00010999,2]
[335675690,1724419845661,-1590.75,0.00010999,2]
[335675691,1724419845671,-1590.75,0.00010999,2]
[335675692,1724419845680,-1590.75,0.00010999,2]
[335675693,1724419845689,-1590.75,0.00010999,2]
[335675694,1724419845699,-1590.75,0.00010999,2]
[335675695,1724419845708,-1590.75,0.00010999,2]
[335675696,1724419845718,-1590.75,0.00010999,2]
[335675697,1724419845727,-1590.75,0.00010999,2]
[335675698,1724419845736,-1590.75,0.00010999,2]
[335675699,1724419845746,-1590.75,0.00010999,2]
[335675700,1724419845755,-1590.83838838,0.00010999,2]
[335675701,1724419845764,-151.0,0.00010999,2]
[335675702,1724419846017,-151.0,0.00010999,2]
[335675703,1724419846039,-151.0,0.00010999,2]
[335675704,1724419846055,-151.0,0.00010999,2]
[335675705,1724419846070,-151.0,0.00010999,2]
[335675706,1724419846079,-167.243321,0.00010999,2]
[335675707,1724419846089,-151.0,0.00010999,2]
[335675708,1724419846101,-226.816476,0.00010999,2]
[335675709,1724419846111,-596.04,0.00010999,2]
[335675710,1724419846121,-297.86,0.00010999,2]
[335675711,1724419846130,-155.92,0.00010999,2]
[335675712,1724419846139,-500.0,0.00010999,2]
[335675713,1724419846148,-500.0,0.00010999,2]
[335675714,1724419846158,-160.48,0.00010999,2]
[335675715,1724419846169,-339.07,0.00010999,2]
[335675716,1724419846178,-500.0,0.00010999,2]
[335675717,1724419846188,-625.3,0.00010999,2]
[335675718,1724419846198,-500.0,0.00010999,2]
[335675719,1724419846207,-500.0,0.00010999,2]
[335675720,1724419846217,-500.0,0.00010999,2]
[335675721,1724419846227,-500.0,0.00010999,2]
[335675722,1724419846236,-500.0,0.00010999,2]
[335675723,1724419846246,-500.0,0.00010999,2]
[335675724,1724419846255,-167.32616657,0.00010999,2]
[335675725,1724419846268,-355.51383343,0.00010999,2]
[335675726,1724419846277,-151.0,0.00010999,2]
[335675727,1724419846286,-151.0,0.00010999,2]
[335675728,1724419846296,-151.0,0.00010999,2]
[335675729,1724419846305,-500.0,0.00010999,2]
[335675730,1724419846315,-500.0,0.00010999,2]
[335675731,1724419846326,-500.0,0.00010999,2]
[335675732,1724419846336,-276.28939405,0.00010999,2]
[335675733,1724419846355,-223.71060595,0.00010999,2]
[335675734,1724419846364,-40.85872488,0.00010999,2]
[335675735,1724419846376,-302.0,0.00010999,2]
[335675736,1724419846387,-157.14127512,0.00010999,2]
[335675737,1724419846397,-500.0,0.00010999,2]
[335675738,1724419846406,-500.0,0.00010999,2]
[335675739,1724419846416,-416.04,0.00010999,2]
[335675740,1724419846425,-500.0,0.00010999,2]
[335675741,1724419846435,-500.0,0.00010999,2]
[335675742,1724419846444,-500.0,0.00010999,2]
[335675743,1724419846453,-500.0,0.00010999,2]
[335675744,1724419846463,-500.0,0.00010999,2]
[335675745,1724419846472,-500.0,0.00010999,2]
[335675746,1724419846483,-500.0,0.00010999,2]
[335675747,1724419846492,-500.0,0.00010999,2]
[335675748,1724419846501,-500.0,0.00010999,2]
[335675749,1724419846510,-17.64530429,0.00010999,2]
[335675750,1724419846522,-390.67842279,0.00010999,2]
[335675753,1724419981926,400.0,0.00027,120]
[335675754,1724419995873,1000.0,0.00027,120]
[335675755,1724419996307,1000.0,0.00027,120]
[335675756,1724420035749,500.0,0.00027,120]
[335675757,1724420052981,200.0,0.00027,120]
[335675758,1724420108655,2887.0,0.00027,120]
[335675762,1724420152203,2000.0,0.00027,120]
[335675763,1724420156952,2000.0,0.00027,120]
[335675764,1724420158287,2000.0,0.00027,120]
[335675765,1724420159502,2000.0,0.00027,120]
[335675766,1724420160760,2000.0,0.00027,120]
[335675767,1724420162055,2000.0,0.00027,120]
[335675768,1724420165025,2000.0,0.00027,120]
[335675769,1724420168479,2000.0,0.00027,120]
[335675770,1724420170284,2000.0,0.00027,120]
[335675771,1724420171896,2000.0,0.00027,120]
[335675772,1724420173358,2000.0,0.00027,120]
[335675776,1724420211021,1000.0,0.00027,120]
[335675785,1724420415808,500.0,0.00027,120]
[335675786,1724420425395,170.94,8.219e-05,2]
[335675787,1724420425440,1050.0,0.0001,2]
[335675790,1724420474802,420.0,0.00027,120]
[335675794,1724420594327,1000.0,0.00027,120]
[335675795,1724420594846,1000.0,0.00027,120]
[335675796,1724420631547,500.0,0.00027,120]
[335675797,1724420651905,200.0,0.00027,120]
[335675800,1724420785066,502.09577714,0.00027,120]
[335675805,1724420939348,200.0,0.00027,120]
[335675819,1724421002540,150.0,0.00027,120]
[335675940,1724421039880,-300.0,0.00010062,2]
[335676216,1724421042828,-700.0,0.00010062,2]
[335676218,1724421042838,-191.16,0.00010124,2]
[335676220,1724421042848,-200.0,0.00010439,2]
[335676222,1724421042858,-170.94,0.00010482,2]
[335676224,1724421042868,-3405.87089751,0.00010566,2]
[335676226,1724421042877,-253.32919331,0.00010862,2]
[335676228,1724421042888,-150.0,0.00010877,2]
[335676230,1724421042897,-575.97906503,0.0001088,2]
[335676375,1724421045561,-536.87843346,0.0001088,2]
[335676376,1724421045625,-4448.14120151,0.0001088,2]
[335676377,1724421045636,-965.57054133,0.00010888,2]
[335676378,1724421045645,-1541.47747,0.0001089,2]
[335676379,1724421045655,-150.0,0.00010898,2]
[335676380,1724421045664,-300.0,0.00010898,2]
[335676381,1724421045675,-300.0,0.00010898,2]
[335676382,1724421045684,-19423.569,0.00010899,2]
[335676383,1724421045693,-6084.61650773,0.00010899,2]
[335676384,1724421045707,-812.74759037,0.00010899,2]
[335676385,1724421045717,-1874.06416438,0.00010899,2]
[335676402,1724421158560,168.79,8.219e-05,2]
[335676403,1724421195384,1000.0,0.00027,120]
[335676404,1724421195805,1000.0,0.00027,120]
[335676411,1724421232334,500.0,0.00027,120]
[335676414,1724421250004,200.0,0.00027,120]
[335676416,1724421293104,500.0,0.0001,2]
[335676419,1724421313476,378.04,0.0001,2]
[335676424,1724421339153,176454.0,0.00027,120]
[335676425,1724421344349,500.0,0.0001,2]
[335676443,1724421455353,500.0,0.0001,2]
[335676445,1724421470349,500.0,0.0001,2]
[335676448,1724421492830,150.0,0.00025,60]
[335676450,1724421502317,150.0,0.00027,120]
[335676453,1724421527766,3233.0,0.00027,120]
[335676455,1724421660518,160.35,8.219e-05,2]
[335676456,1724421706526,155.0,0.00010009,2]
[335676457,1724421717731,155.0,0.00010009,2]
[335676458,1724421725340,500.0,0.00010009,2]
[335676462,1724421793566,1000.0,0.00027,120]
[335676463,1724421793958,1000.0,0.00027,120]
[335676466,1724421813358,500.0,0.00010009,2]
[335676470,1724421830423,500.0,0.00027,120]
[335676477,1724421848495,345.145128,0.00027,120]
[335676500,1724421939054,309.33153452,0.00025,90]
[335676613,1724422185620,152.33,8.219e-05,2]
[335676618,1724422207977,152.92,9.986e-05,2]
[335676637,1724422231742,-200.01,0.00010065,2]
[335676638,1724422231751,-101.67621969,0.0001009,2]
[335676639,1724422231762,-898.32378031,0.0001009,2]
[335676640,1724422231777,-419.90727343,0.00010097,2]
[335676641,1724422231787,-207.07,0.00010212,2]
[335676642,1724422231796,-152.33,0.00010476,2]
[335676643,1724422231805,-470.0,0.000107,2]
[335676644,1724422231815,-150.0,0.00010761,2]
[335676645,1724422231824,-1284.56456,0.0001079,2]
[335676646,1724422231834,-1323.17583517,0.00010825,2]
[335676647,1724422231844,-965.57054133,0.00010861,2]
[335676648,1724422231855,-253.32919331,0.00010861,2]
[335676649,1724422231867,-150.0,0.00010872,2]
[335676650,1724422231876,-236.36319912,0.00010888,2]
[335676651,1724422231885,-155.0,0.00010888,2]
[335676652,1724422231897,-131.02018595,0.00010888,2]
[335676653,1724422231912,-3086.10217284,0.00010888,2]
[335676654,1724422231924,-188.74853872,0.00010888,2]
[335676655,1724422231934,-300.0,0.00010889,2]
[335676656,1724422231943,-357.4813523,0.0001089,2]
[335676657,1724422231953,-3973.49299779,0.00010899,2]
[335676658,1724422231964,-15166.94265293,0.00010899,2]
[335676659,1724422231973,-375.3169646,0.00010899,2]
[335676660,1724422231982,-499.99,0.000109,2]
[335676661,1724422231991,-185.00290264,0.000109,2]
[335676662,1724422232000,-154.79061054,0.000109,2]
[335676663,1724422232009,-154.79061054,0.000109,2]
[335676664,1724422232019,-154.79061054,0.000109,2]
[335676666,1724422232029,-154.79061054,0.000109,2]
[335676668,1724422232039,-154.79061054,0.000109,2]
[335676670,1724422232048,-154.79061054,0.000109,2]
[335676672,1724422232058,-500.0,0.00010911,2]
[335676674,1724422232067,-168.37,0.00010959,2]
[335676676,1724422232076,-250.0,0.00010959,2]
[335676678,1724422232085,-150.0,0.00010991,2]
[335676680,1724422232094,-3152.1323877,0.00010992,2]
[335676682,1724422232104,-483.7487098,0.00010992,2]
[335676686,1724422232115,-438.58020339,0.00010992,2]
[335676698,1724422237761,-419.90727343,0.00010026,2]
[335676699,1724422237770,-8654.79290955,0.00010989,2]
[335676700,1724422237779,-155.0,0.00010989,2]
[335676701,1724422237789,-589.85818834,0.00010992,2]
[335676702,1724422237803,-1285.44141937,0.00010992,2]
[335676703,1724422237812,-2882.94515621,0.00010992,2]
[335676704,1724422237823,-418.71438162,0.00010992,2]
[335676812,1724422239920,-950.90019971,0.00010992,2]
[335676832,1724422240031,-22194.97216554,0.00010992,2]
[335676843,1724422240141,-2000.0,0.00010992,2]
[335676846,1724422240156,-592.58225733,0.00010992,2]
[335676859,1724422240272,-869.59654346,0.00010992,2]
[335676860,1724422240283,-22752.67391473,0.00010992,2]
[335676861,1724422240293,-7994.3525553,0.00010992,2]
[335676862,1724422240302,-752.54354941,0.00010995,2]
[335676863,1724422240312,-752.54354941,0.00010996,2]
[335676864,1724422240321,-3786.35659641,0.00010997,2]
[335677089,1724422242913,-3405.87089751,0.00010888,2]
[335677091,1724422242923,-1481.44824946,0.00010997,2]
[335677093,1724422242932,-204.68566105,0.00010997,2]
[335677095,1724422242943,-173.32103328,0.00010998,2]